[Event "Polofinale MCR junioru 2023"]
[Site "Czech Republic"]
[Date "2023.11.12"]
[Round "2.32"]
[White "Popov, Roman"]
[Black "Mrazek, Adam"]
[Result "0-1"]
[TimeControl "90 min per 40 moves + 15 min + 30 sec / move from move 1"]
[WhiteFideId "23732580"]
[BlackFideId "23725010"]
[WhiteElo "1889"]
[BlackElo "1643"]

1. d4 {[%clk 01:30:52]} {[%emt 00:00:07]} d5 {[%clk 01:30:42]} {[%emt
00:00:19]} 2. c4 {[%clk 01:31:11]} {[%emt 00:00:11]} Nc6 {[%clk 01:30:57]}
{[%emt 00:00:15]} 3. Nf3 {[%clk 01:31:12]} {[%emt 00:00:28]} Bg4 {[%clk
01:31:14]} {[%emt 00:00:13]} 4. cxd5 {[%clk 01:31:11]} {[%emt 00:00:31]} Bxf3
{[%clk 01:31:26]} {[%emt 00:00:17]} 5. gxf3 {[%clk 01:31:29]} {[%emt 00:00:12]}
Qxd5 {[%clk 01:31:45]} {[%emt 00:00:11]} 6. e3 {[%clk 01:31:45]} {[%emt
00:00:14]} e5 {[%clk 01:31:47]} {[%emt 00:00:28]} 7. Nc3 {[%clk 01:31:54]}
{[%emt 00:00:21]} Bb4 {[%clk 01:32:04]} {[%emt 00:00:14]} 8. Bd2 {[%clk
01:32:16]} {[%emt 00:00:07]} Bxc3 {[%clk 01:32:17]} {[%emt 00:00:17]} 9. bxc3
{[%clk 01:32:37]} {[%emt 00:00:09]} Nge7 {[%clk 01:32:00]} {[%emt 00:00:47]} 10.
e4 {[%clk 01:21:19]} {[%emt 00:11:47]} Qd6 {[%clk 01:30:57]} {[%emt 00:01:32]}
11. d5 {[%clk 01:17:31]} {[%emt 00:04:19]} Nd8 {[%clk 01:24:35]} {[%emt
00:06:53]} 12. Qa4+ {[%clk 01:15:21]} {[%emt 00:02:40]} c6 {[%clk 01:01:40]}
{[%emt 00:23:24]} 13. c4 {[%clk 01:09:29]} {[%emt 00:06:22]} O-O {[%clk
01:01:02]} {[%emt 00:01:09]} 14. c5 {[%clk 01:00:18]} {[%emt 00:09:41]} Qf6
{[%clk 00:57:33]} {[%emt 00:03:58]} 15. d6 {[%clk 00:50:59]} {[%emt 00:09:49]}
Ng6 {[%clk 00:57:55]} {[%emt 00:00:08]} 16. Be2 {[%clk 00:47:53]} {[%emt
00:03:36]} Ne6 {[%clk 00:50:03]} {[%emt 00:08:22]} 17. Be3 {[%clk 00:44:10]}
{[%emt 00:04:13]} Nh4 {[%clk 00:47:02]} {[%emt 00:03:31]} 18. Rg1 {[%clk
00:32:11]} {[%emt 00:12:29]} Nxf3+ {[%clk 00:45:31]} {[%emt 00:02:01]} 19. Bxf3
{[%clk 00:32:32]} {[%emt 00:00:09]} Qxf3 {[%clk 00:45:52]} {[%emt 00:00:09]} 20.
Rd1 {[%clk 00:30:20]} {[%emt 00:02:41]} Nd4 {[%clk 00:33:00]} {[%emt 00:13:22]}
21. Bxd4 {[%clk 00:23:46]} {[%emt 00:07:04]} Qxe4+ {[%clk 00:33:15]} {[%emt
00:00:15]} 22. Kf1 {[%clk 00:23:34]} {[%emt 00:00:41]} exd4 {[%clk 00:33:24]}
{[%emt 00:00:21]} 23. Qxd4 {[%clk 00:20:33]} {[%emt 00:03:31]} Qxd4 {[%clk
00:33:20]} {[%emt 00:00:34]} 24. Rxd4 {[%clk 00:21:02]} {[%emt 00:00:02]} b6
{[%clk 00:30:33]} {[%emt 00:03:17]} 25. cxb6 {[%clk 00:19:52]} {[%emt
00:01:40]} axb6 {[%clk 00:30:34]} {[%emt 00:00:28]} 26. Rd2 {[%clk 00:18:36]}
{[%emt 00:01:45]} Rfd8 {[%clk 00:11:56]} {[%emt 00:19:08]} 27. Rg3 {[%clk
00:17:59]} {[%emt 00:01:07]} Rd7 {[%clk 00:12:06]} {[%emt 00:00:20]} 28. Rb3
{[%clk 00:15:58]} {[%emt 00:02:30]} b5 {[%clk 00:11:00]} {[%emt 00:01:36]} 29.
Rc3 {[%clk 00:15:40]} {[%emt 00:00:48]} Rc8 {[%clk 00:11:24]} {[%emt 00:00:06]}
30. Rc5 {[%clk 00:15:34]} {[%emt 00:00:37]} f6 {[%clk 00:11:20]} {[%emt
00:00:33]} 31. Rdc2 {[%clk 00:14:30]} {[%emt 00:01:34]} Rxd6 {[%clk 00:10:56]}
{[%emt 00:00:55]} 32. Rxb5 {[%clk 00:14:47]} {[%emt 00:00:12]} cxb5 {[%clk
00:03:41]} {[%emt 00:07:46]} 33. Rxc8+ {[%clk 00:15:10]} {[%emt 00:00:07]} Kf7
{[%clk 00:04:08]} {[%emt 00:00:02]} 34. Rb8 {[%clk 00:15:00]} {[%emt 00:00:40]}
Rd5 {[%clk 00:04:22]} {[%emt 00:00:17]} 35. Rb7+ {[%clk 00:12:02]} {[%emt
00:03:28]} Kg6 {[%clk 00:04:48]} {[%emt 00:00:04]} 36. Ke2 {[%clk 00:11:32]}
{[%emt 00:00:59]} Rh5 {[%clk 00:03:04]} {[%emt 00:02:15]} 37. a3 {[%clk
00:06:00]} {[%emt 00:06:03]} Rxh2 {[%clk 00:02:28]} {[%emt 00:01:06]} 38. Rxb5
{[%clk 00:06:28]} {[%emt 00:00:02]} Rh3 {[%clk 00:02:16]} {[%emt 00:00:42]} 39.
a4 {[%clk 00:05:44]} {[%emt 00:01:14]} Ra3 {[%clk 00:02:19]} {[%emt 00:00:27]}
40. Ra5 {[%clk 00:05:51]} {[%emt 00:00:23]} h5 {[%clk 00:02:24]} {[%emt
00:00:25]} 41. Kf1 {[%clk 00:04:44]} {[%emt 00:01:37]} h4 {[%clk 00:15:23]}
{[%emt 00:03:02]} 42. Kg2 {[%clk 00:20:40]} {[%emt 00:00:35]} h3+ {[%clk
00:14:37]} {[%emt 00:01:15]} 43. Kh2 {[%clk 00:20:37]} {[%emt 00:00:32]} f5
{[%clk 00:12:09]} {[%emt 00:02:59]} 44. Re5 {[%clk 00:17:41]} {[%emt 00:03:26]}
Ra2 {[%clk 00:10:51]} {[%emt 00:01:48]} 45. Kxh3 {[%clk 00:15:06]} {[%emt
00:03:03]} Rxf2 {[%clk 00:11:14]} {[%emt 00:00:09]} 46. Re7 {[%clk 00:13:34]}
{[%emt 00:02:02]} Kf6 {[%clk 00:08:00]} {[%emt 00:03:44]} 47. Ra7 {[%clk
00:13:37]} {[%emt 00:00:27]} g5 {[%clk 00:08:03]} {[%emt 00:00:28]} 48. Kg3
{[%clk 00:12:46]} {[%emt 00:01:21]} Ra2 {[%clk 00:08:09]} {[%emt 00:00:24]} 49.
a5 {[%clk 00:11:16]} {[%emt 00:02:00]} Ra3+ {[%clk 00:08:14]} {[%emt 00:00:25]}
50. Kf2 {[%clk 00:11:38]} {[%emt 00:00:07]} Ke5 {[%clk 00:08:33]} {[%emt
00:00:11]} 51. a6 {[%clk 00:11:25]} {[%emt 00:00:43]} Kf4 {[%clk 00:07:50]}
{[%emt 00:01:13]} 52. Ra8 {[%clk 00:11:01]} {[%emt 00:00:54]} g4 {[%clk
00:06:36]} {[%emt 00:01:45]} 53. a7 {[%clk 00:10:44]} {[%emt 00:00:47]} g3+
{[%clk 00:06:10]} {[%emt 00:00:56]} 54. Ke1 {[%clk 00:08:55]} {[%emt 00:02:18]}
g2 {[%clk 00:04:07]} {[%emt 00:02:33]} 55. Kf2 {[%clk 00:06:20]} {[%emt
00:03:05]} Ra2+ {[%clk 00:04:17]} {[%emt 00:00:21]} 56. Kg1 {[%clk 00:06:11]}
{[%emt 00:00:39]} Kf3 {[%clk 00:04:28]} {[%emt 00:00:19]} 0-1

[Event "Polofinale MCR junioru 2023"]
[Site "Czech Republic"]
[Date "2023.11.12"]
[Round "2.33"]
[White "Gregor, Alexandr"]
[Black "Fizerova, Lucie"]
[Result "0-1"]
[TimeControl "90 min per 40 moves + 15 min + 30 sec / move from move 1"]
[WhiteFideId "23735813"]
[BlackFideId "385115"]
[WhiteElo "1601"]
[BlackElo "1886"]

1. e4 {[%clk 01:31:17]} {[%emt 00:00:03]} c5 {[%clk 01:30:52]} {[%emt
00:00:08]} 2. Nf3 {[%clk 01:31:36]} {[%emt 00:00:10]} d6 {[%clk 01:31:16]}
{[%emt 00:00:06]} 3. d4 {[%clk 01:31:59]} {[%emt 00:00:07]} cxd4 {[%clk
01:31:37]} {[%emt 00:00:09]} 4. Nxd4 {[%clk 01:32:24]} {[%emt 00:00:05]} Nf6
{[%clk 01:32:02]} {[%emt 00:00:04]} 5. Nc3 {[%clk 01:32:47]} {[%emt 00:00:08]}
Nc6 {[%clk 01:32:26]} {[%emt 00:00:06]} 6. Be2 {[%clk 01:31:28]} {[%emt
00:01:49]} e5 {[%clk 01:32:17]} {[%emt 00:00:39]} 7. Nb3 {[%clk 01:26:59]}
{[%emt 00:04:59]} Be7 {[%clk 01:32:12]} {[%emt 00:00:35]} 8. Be3 {[%clk
01:25:50]} {[%emt 00:01:39]} O-O {[%clk 01:31:56]} {[%emt 00:00:45]} 9. O-O
{[%clk 01:25:37]} {[%emt 00:00:44]} a5 {[%clk 01:31:44]} {[%emt 00:00:42]} 10.
a4 {[%clk 01:23:53]} {[%emt 00:02:14]} Nb4 {[%clk 01:30:46]} {[%emt 00:01:28]}
11. f3 {[%clk 01:22:01]} {[%emt 00:02:22]} d5 {[%clk 01:29:25]} {[%emt
00:01:51]} 12. exd5 {[%clk 01:20:40]} {[%emt 00:01:51]} Nbxd5 {[%clk 01:25:23]}
{[%emt 00:04:32]} 13. Nxd5 {[%clk 01:18:53]} {[%emt 00:02:17]} Nxd5 {[%clk
01:25:35]} {[%emt 00:00:18]} 14. Bf2 {[%clk 01:18:31]} {[%emt 00:00:51]} Be6
{[%clk 01:18:37]} {[%emt 00:07:28]} 15. Nc5 {[%clk 01:09:51]} {[%emt 00:09:11]}
Bxc5 {[%clk 01:17:17]} {[%emt 00:01:50]} 16. Bxc5 {[%clk 01:10:16]} {[%emt
00:00:05]} Re8 {[%clk 01:17:40]} {[%emt 00:00:06]} 17. Bd3 {[%clk 00:56:20]}
{[%emt 00:14:27]} Qc7 {[%clk 01:16:56]} {[%emt 00:01:13]} 18. Bf2 {[%clk
00:55:31]} {[%emt 00:01:19]} Red8 {[%clk 01:07:41]} {[%emt 00:09:45]} 19. Qe1
{[%clk 00:47:09]} {[%emt 00:08:51]} Nb4 {[%clk 01:04:36]} {[%emt 00:03:35]} 20.
Bg3 {[%clk 00:42:31]} {[%emt 00:05:08]} Nxd3 {[%clk 01:02:02]} {[%emt
00:03:04]} 21. cxd3 {[%clk 00:42:55]} {[%emt 00:00:06]} Rxd3 {[%clk 00:58:45]}
{[%emt 00:03:47]} 22. Bxe5 {[%clk 00:42:50]} {[%emt 00:00:34]} Qc5+ {[%clk
00:58:36]} {[%emt 00:00:39]} 23. Kh1 {[%clk 00:41:25]} {[%emt 00:01:55]} Re3
{[%clk 00:57:45]} {[%emt 00:01:21]} 24. Bd6 {[%clk 00:41:27]} {[%emt 00:00:28]}
Qd4 {[%clk 00:56:18]} {[%emt 00:01:57]} 25. Qg3 {[%clk 00:39:08]} {[%emt
00:02:49]} Bb3 {[%clk 00:50:26]} {[%emt 00:06:21]} 26. Rac1 {[%clk 00:33:47]}
{[%emt 00:05:53]} Re6 {[%clk 00:49:04]} {[%emt 00:01:52]} 27. f4 {[%clk
00:15:34]} {[%emt 00:18:43]} Qxa4 {[%clk 00:38:38]} {[%emt 00:10:56]} 28. f5
{[%clk 00:09:55]} {[%emt 00:06:09]} Re4 {[%clk 00:37:48]} {[%emt 00:01:20]} 29.
h3 {[%clk 00:03:16]} {[%emt 00:07:09]} Qb5 {[%clk 00:33:43]} {[%emt 00:04:35]}
30. f6 {[%clk 00:01:45]} {[%emt 00:02:01]} g6 {[%clk 00:33:41]} {[%emt
00:00:32]} 31. Rf4 {[%emt 00:01:49]} 0-1

[Event "Polofinale MCR junioru 2023"]
[Site "Czech Republic"]
[Date "2023.11.12"]
[Round "2.34"]
[White "Rucabado, Stefan"]
[Black "Meca, Viktor"]
[Result "0-1"]
[TimeControl "90 min per 40 moves + 15 min + 30 sec / move from move 1"]
[WhiteFideId "23730315"]
[BlackFideId "23739800"]
[WhiteElo "1873"]
[BlackElo "1642"]

1. e4 {[%clk 01:30:34]} {[%emt 00:00:25]} c5 {[%clk 01:30:49]} {[%emt
00:00:12]} 2. Nf3 {[%clk 01:30:54]} {[%emt 00:00:10]} d6 {[%clk 01:31:08]}
{[%emt 00:00:12]} 3. d4 {[%clk 01:31:18]} {[%emt 00:00:05]} cxd4 {[%clk
01:31:29]} {[%emt 00:00:09]} 4. Nxd4 {[%clk 01:31:43]} {[%emt 00:00:05]} Nf6
{[%clk 01:31:48]} {[%emt 00:00:10]} 5. Nc3 {[%clk 01:32:10]} {[%emt 00:00:04]}
g6 {[%clk 01:32:03]} {[%emt 00:00:15]} 6. Be3 {[%clk 01:31:06]} {[%emt
00:01:34]} Bg7 {[%clk 01:32:11]} {[%emt 00:00:22]} 7. f3 {[%clk 01:31:27]}
{[%emt 00:00:07]} O-O {[%clk 01:32:32]} {[%emt 00:00:11]} 8. Qd2 {[%clk
01:31:54]} {[%emt 00:00:03]} Nc6 {[%clk 01:32:52]} {[%emt 00:00:10]} 9. O-O-O
{[%clk 01:31:22]} {[%emt 00:01:02]} d5 {[%clk 01:32:14]} {[%emt 00:01:09]} 10.
exd5 {[%clk 01:31:43]} {[%emt 00:00:08]} Nxd5 {[%clk 01:32:33]} {[%emt
00:00:11]} 11. Nxc6 {[%clk 01:32:05]} {[%emt 00:00:09]} bxc6 {[%clk 01:32:53]}
{[%emt 00:00:10]} 12. Bd4 {[%clk 01:32:25]} {[%emt 00:00:10]} e5 {[%clk
01:30:48]} {[%emt 00:02:35]} 13. Bc5 {[%clk 01:32:50]} {[%emt 00:00:05]} Be6
{[%clk 01:31:07]} {[%emt 00:00:11]} 14. Ne4 {[%clk 01:33:01]} {[%emt 00:00:18]}
Re8 {[%clk 01:23:08]} {[%emt 00:08:29]} 15. Bc4 {[%clk 01:31:13]} {[%emt
00:02:18]} Qc7 {[%clk 01:15:54]} {[%emt 00:07:44]} 16. g4 {[%clk 01:25:58]}
{[%emt 00:05:45]} Red8 {[%clk 01:10:44]} {[%emt 00:05:41]} 17. Qf2 {[%clk
01:12:38]} {[%emt 00:13:50]} a5 {[%clk 00:59:14]} {[%emt 00:12:00]} 18. g5
{[%clk 00:58:30]} {[%emt 00:14:38]} Rab8 {[%clk 00:51:30]} {[%emt 00:08:14]} 19.
h4 {[%clk 00:30:42]} {[%emt 00:28:18]} Qb7 {[%clk 00:44:22]} {[%emt 00:07:39]}
20. c3 {[%clk 00:29:55]} {[%emt 00:01:17]} Nf4 {[%clk 00:29:35]} {[%emt
00:15:17]} 21. Bxe6 {[%clk 00:16:08]} {[%emt 00:14:17]} Nxe6 {[%clk 00:29:49]}
{[%emt 00:00:16]} 22. Ba3 {[%clk 00:13:38]} {[%emt 00:03:00]} Nf4 {[%clk
00:26:27]} {[%emt 00:03:52]} 23. Nc5 {[%clk 00:07:06]} {[%emt 00:07:01]} Qb6
{[%clk 00:22:57]} {[%emt 00:04:01]} 24. Qc2 {[%clk 00:04:04]} {[%emt 00:03:30]}
Bf8 {[%clk 00:21:42]} {[%emt 00:01:46]} 25. Nd7 {[%clk 00:00:51]} {[%emt
00:03:44]} Qe3+ {[%clk 00:21:59]} {[%emt 00:00:13]} 26. Qd2 {[%clk 00:00:43]}
{[%emt 00:00:38]} Nd3+ {[%clk 00:16:32]} {[%emt 00:05:57]} 27. Kc2 {[%clk
00:00:57]} {[%emt 00:00:16]} Qxd2+ {[%clk 00:15:55]} {[%emt 00:01:07]} 28. Rxd2
{[%clk 00:00:33]} {[%emt 00:00:54]} Rxd7 {[%clk 00:16:08]} {[%emt 00:00:17]} 29.
Rxd3 {[%clk 00:00:35]} {[%emt 00:00:29]} Rdb7 {[%clk 00:15:40]} {[%emt
00:00:58]} 30. Kd2 {[%clk 00:00:31]} {[%emt 00:00:34]} Bxa3 {[%clk 00:15:49]}
{[%emt 00:00:21]} 31. bxa3 {[%clk 00:01:00]} {[%emt 00:00:01]} Rb2+ {[%clk
00:16:08]} {[%emt 00:00:10]} 32. Ke3 {[%clk 00:01:25]} {[%emt 00:00:04]} Rxa2
{[%clk 00:15:56]} {[%emt 00:00:43]} 33. Re1 {[%clk 00:00:31]} {[%emt 00:01:23]}
Rxa3 {[%clk 00:15:50]} {[%emt 00:00:36]} 34. Ke4 {[%clk 00:00:32]} {[%emt
00:00:29]} f5+ {[%clk 00:16:05]} {[%emt 00:00:15]} 35. gxf6 {[%clk 00:00:56]}
{[%emt 00:00:06]} Ra4+ {[%clk 00:15:59]} {[%emt 00:00:36]} 36. Ke3 {[%clk
00:00:50]} {[%emt 00:00:36]} Rxh4 {[%clk 00:15:51]} {[%emt 00:00:38]} 37. Ra1
{[%clk 00:01:06]} {[%emt 00:00:14]} a4 {[%clk 00:15:15]} {[%emt 00:01:06]} 38.
Rd6 {[%clk 00:00:38]} {[%emt 00:00:58]} Rb6 {[%clk 00:14:47]} {[%emt 00:00:58]}
39. Kd3 {[%clk 00:00:34]} {[%emt 00:00:34]} Rf4 {[%clk 00:14:14]} {[%emt
00:01:03]} 40. Re1 {[%clk 00:00:31]} {[%emt 00:00:33]} Rxf3+ {[%clk 00:12:11]}
{[%emt 00:02:33]} 41. Kc4 {[%clk 00:14:08]} {[%emt 00:02:23]} Rb3 {[%clk
00:26:22]} {[%emt 00:01:49]} 42. Rc1 {[%clk 00:13:02]} {[%emt 00:01:36]} Kf7
{[%clk 00:21:17]} {[%emt 00:05:35]} 43. Rxc6 {[%clk 00:11:58]} {[%emt
00:01:33]} Rxf6 {[%clk 00:21:16]} {[%emt 00:00:31]} 44. Rc7+ {[%clk 00:12:02]}
{[%emt 00:00:26]} Ke6 {[%clk 00:19:21]} {[%emt 00:02:25]} 45. Rxh7 {[%clk
00:11:16]} {[%emt 00:01:16]} Rf4+ {[%clk 00:18:32]} {[%emt 00:01:18]} 46. Kc5
{[%clk 00:11:36]} {[%emt 00:00:09]} Rf7 {[%clk 00:17:54]} {[%emt 00:01:09]} 47.
Rxf7 {[%clk 00:10:43]} {[%emt 00:01:23]} Kxf7 {[%clk 00:18:18]} {[%emt
00:00:06]} 48. Kd6 {[%clk 00:09:40]} {[%emt 00:01:32]} e4 {[%clk 00:17:51]}
{[%emt 00:00:56]} 49. Ke5 {[%clk 00:06:03]} {[%emt 00:04:06]} e3 {[%clk
00:17:41]} {[%emt 00:00:41]} 50. Kd4 {[%clk 00:06:20]} {[%emt 00:00:13]} e2
{[%clk 00:17:45]} {[%emt 00:00:27]} 51. Kd3 {[%clk 00:06:34]} {[%emt 00:00:15]}
Rb2 {[%clk 00:17:40]} {[%emt 00:00:36]} 52. c4 {[%clk 00:05:43]} {[%emt
00:01:20]} a3 {[%clk 00:17:41]} {[%emt 00:00:28]} 53. Kc3 {[%clk 00:06:02]}
{[%emt 00:00:10]} Rb7 {[%clk 00:17:08]} {[%emt 00:01:04]} 54. Kd2 {[%clk
00:05:40]} {[%emt 00:00:52]} a2 {[%clk 00:17:15]} {[%emt 00:00:24]} 55. Kc2
{[%clk 00:05:21]} {[%emt 00:00:49]} Rb1 {[%clk 00:17:35]} {[%emt 00:00:10]} 0-1

[Event "Polofinale MCR junioru 2023"]
[Site "Czech Republic"]
[Date "2023.11.12"]
[Round "2.35"]
[White "Pistej, Tomas"]
[Black "Stejskal, Michal"]
[Result "1-0"]
[TimeControl "90 min per 40 moves + 15 min + 30 sec / move from move 1"]
[WhiteFideId "23750740"]
[BlackFideId "398195"]
[WhiteElo "1502"]
[BlackElo "1872"]

1. e4 {[%clk 01:30:55]} {[%emt 00:00:04]} e5 {[%clk 01:30:52]} {[%emt
00:00:08]} 2. Nc3 {[%clk 01:31:16]} {[%emt 00:00:10]} Nc6 {[%clk 01:31:14]}
{[%emt 00:00:08]} 3. Bc4 {[%clk 01:31:38]} {[%emt 00:00:08]} Nf6 {[%clk
01:31:21]} {[%emt 00:00:23]} 4. d3 {[%clk 01:31:51]} {[%emt 00:00:17]} Bb4
{[%clk 01:31:38]} {[%emt 00:00:12]} 5. Nge2 {[%clk 01:31:09]} {[%emt 00:01:12]}
d5 {[%clk 01:31:42]} {[%emt 00:00:27]} 6. exd5 {[%clk 01:30:26]} {[%emt
00:01:13]} Nxd5 {[%clk 01:32:05]} {[%emt 00:00:06]} 7. O-O {[%clk 01:29:48]}
{[%emt 00:01:08]} Be6 {[%clk 01:29:30]} {[%emt 00:03:04]} 8. Nxd5 {[%clk
01:25:49]} {[%emt 00:04:29]} Bxd5 {[%clk 01:29:53]} {[%emt 00:00:07]} 9. Bxd5
{[%clk 01:26:11]} {[%emt 00:00:08]} Qxd5 {[%clk 01:30:18]} {[%emt 00:00:05]} 10.
a3 {[%clk 01:24:54]} {[%emt 00:01:48]} Bd6 {[%clk 01:28:24]} {[%emt 00:02:24]}
11. Nc3 {[%clk 01:23:30]} {[%emt 00:01:54]} Qe6 {[%clk 01:28:48]} {[%emt
00:00:06]} 12. f4 {[%clk 01:14:22]} {[%emt 00:09:37]} O-O-O {[%clk 01:25:15]}
{[%emt 00:04:03]} 13. fxe5 {[%clk 01:08:26]} {[%emt 00:06:27]} Bxe5 {[%clk
01:23:49]} {[%emt 00:01:55]} 14. Ne2 {[%clk 01:03:23]} {[%emt 00:05:30]} Rhe8
{[%clk 01:18:58]} {[%emt 00:05:24]} 15. Nf4 {[%clk 00:57:13]} {[%emt 00:06:38]}
Qd6 {[%clk 01:19:07]} {[%emt 00:00:23]} 16. Qg4+ {[%clk 00:52:39]} {[%emt
00:05:03]} Kb8 {[%clk 01:19:29]} {[%emt 00:00:09]} 17. c3 {[%clk 00:47:23]}
{[%emt 00:05:45]} Na5 {[%clk 01:10:39]} {[%emt 00:09:20]} 18. d4 {[%clk
00:42:37]} {[%emt 00:05:17]} Nb3 {[%clk 01:10:54]} {[%emt 00:00:14]} 19. Rb1
{[%clk 00:24:22]} {[%emt 00:18:44]} Qb6 {[%clk 01:09:11]} {[%emt 00:02:13]} 20.
Kh1 {[%clk 00:22:55]} {[%emt 00:01:56]} Bf6 {[%clk 01:08:13]} {[%emt 00:01:28]}
21. Nh5 {[%clk 00:20:37]} {[%emt 00:02:48]} Nxc1 {[%clk 01:05:02]} {[%emt
00:03:42]} 22. Nxf6 {[%clk 00:18:01]} {[%emt 00:03:06]} gxf6 {[%clk 01:05:25]}
{[%emt 00:00:06]} 23. Rfxc1 {[%clk 00:18:08]} {[%emt 00:00:22]} Re7 {[%clk
01:04:41]} {[%emt 00:01:15]} 24. b4 {[%clk 00:15:46]} {[%emt 00:02:53]} Rde8
{[%clk 01:04:42]} {[%emt 00:00:28]} 25. Qg3 {[%clk 00:14:30]} {[%emt 00:02:15]}
Qe6 {[%clk 01:02:38]} {[%emt 00:03:05]} 26. h3 {[%clk 00:13:15]} {[%emt
00:01:45]} b6 {[%clk 01:02:16]} {[%emt 00:00:52]} 27. c4 {[%clk 00:11:23]}
{[%emt 00:02:22]} Qe2 {[%clk 00:59:19]} {[%emt 00:03:27]} 28. c5 {[%clk
00:10:10]} {[%emt 00:01:43]} Re3 {[%clk 00:59:43]} {[%emt 00:00:06]} 29. Qf4
{[%clk 00:09:11]} {[%emt 00:01:29]} Rg8 {[%clk 00:59:29]} {[%emt 00:00:44]} 30.
Rg1 {[%clk 00:08:51]} {[%emt 00:00:49]} Qd3 {[%clk 00:59:05]} {[%emt 00:00:55]}
31. Rbe1 {[%clk 00:07:17]} {[%emt 00:02:04]} Rxe1 {[%clk 00:57:16]} {[%emt
00:02:20]} 32. Rxe1 {[%clk 00:07:38]} {[%emt 00:00:09]} Qxa3 {[%clk 00:57:35]}
{[%emt 00:00:11]} 33. cxb6 {[%clk 00:07:01]} {[%emt 00:01:07]} axb6 {[%clk
00:57:54]} {[%emt 00:00:11]} 34. Re7 {[%clk 00:06:14]} {[%emt 00:01:16]} Rc8
{[%clk 00:58:16]} {[%emt 00:00:08]} 35. d5 {[%clk 00:05:27]} {[%emt 00:01:17]}
Qd3 {[%clk 00:58:30]} {[%emt 00:00:16]} 36. Rd7 {[%clk 00:04:50]} {[%emt
00:01:07]} Qb5 {[%clk 00:58:30]} {[%emt 00:00:30]} 37. Rxf7 {[%clk 00:04:03]}
{[%emt 00:01:17]} Qxd5 {[%clk 00:58:55]} {[%emt 00:00:05]} 38. Rxh7 {[%clk
00:03:48]} {[%emt 00:00:45]} Qb3 {[%clk 00:58:29]} {[%emt 00:00:56]} 39. Rh6
{[%clk 00:03:19]} {[%emt 00:00:59]} Rf8 {[%clk 00:56:34]} {[%emt 00:02:26]} 40.
h4 {[%clk 00:02:16]} {[%emt 00:01:32]} Qc3 {[%clk 00:55:08]} {[%emt 00:01:55]}
41. h5 {[%clk 00:01:06]} {[%emt 00:01:41]} Kb7 {[%clk 00:53:09]} {[%emt
00:02:29]} 42. Rh7 {[%clk 00:13:48]} {[%emt 00:03:17]} Qc2 {[%clk 01:06:22]}
{[%emt 00:02:48]} 43. Rd7 {[%clk 00:12:35]} {[%emt 00:01:43]} Qc6 {[%clk
01:02:52]} {[%emt 00:04:00]} 44. Rd3 {[%clk 00:09:35]} {[%emt 00:03:29]} Rh8
{[%emt 00:02:44]} 45. Rh3 {[%clk 00:08:45]} b5 {[%clk 01:01:40]} {[%emt
00:00:49]} 46. h6 {[%clk 00:07:43]} {[%emt 00:01:32]} Rg8 {[%clk 00:58:44]}
{[%emt 00:03:26]} 47. Qf3 {[%clk 00:05:57]} {[%emt 00:02:15]} Rh8 {[%clk
00:58:46]} {[%emt 00:00:28]} 48. Qf4 {[%clk 00:03:32]} {[%emt 00:02:55]} Rg8
{[%clk 00:56:33]} {[%emt 00:02:43]} 49. Rf3 {[%clk 00:03:29]} {[%emt 00:00:33]}
Qc2 {[%clk 00:55:28]} {[%emt 00:01:35]} 50. Rf2 {[%clk 00:02:28]} {[%emt
00:01:31]} Qd1+ {[%clk 00:55:19]} {[%emt 00:00:39]} 51. Kh2 {[%clk 00:01:44]}
{[%emt 00:01:14]} Qh5+ {[%clk 00:49:32]} {[%emt 00:06:17]} 52. Kg1 {[%clk
00:02:07]} {[%emt 00:00:07]} Qd1+ {[%clk 00:49:36]} {[%emt 00:00:26]} 53. Kh2
{[%clk 00:02:06]} {[%emt 00:00:31]} Rh8 {[%clk 00:44:34]} {[%emt 00:05:32]} 54.
Rf3 {[%clk 00:01:39]} {[%emt 00:00:56]} Qd6 {[%clk 00:43:43]} {[%emt 00:01:22]}
55. Qxd6 {[%clk 00:01:55]} {[%emt 00:00:14]} Rxh6+ {[%clk 00:44:09]} {[%emt
00:00:04]} 56. Rh3 {[%clk 00:01:22]} {[%emt 00:01:02]} Rxh3+ {[%clk 00:44:29]}
{[%emt 00:00:10]} 57. gxh3 {[%clk 00:01:38]} {[%emt 00:00:14]} cxd6 {[%clk
00:44:55]} {[%emt 00:00:05]} 58. h4 {[%clk 00:01:52]} {[%emt 00:00:16]} d5
{[%clk 00:45:08]} {[%emt 00:00:16]} 59. h5 {[%clk 00:02:02]} {[%emt 00:00:20]}
d4 {[%clk 00:45:24]} {[%emt 00:00:15]} 60. Kg2 {[%clk 00:02:12]} {[%emt
00:00:19]} Kc6 {[%clk 00:45:50]} {[%emt 00:00:04]} 61. h6 {[%clk 00:02:16]}
{[%emt 00:00:26]} Kd5 {[%clk 00:46:12]} {[%emt 00:00:09]} 62. h7 {[%clk
00:02:24]} {[%emt 00:00:21]} Kc4 {[%clk 00:46:38]} {[%emt 00:00:04]} 63. h8=Q
{[%clk 00:02:34]} {[%emt 00:00:20]} Kxb4 {[%clk 00:47:05]} {[%emt 00:00:04]} 64.
Qxf6 {[%clk 00:02:42]} {[%emt 00:00:21]} d3 {[%clk 00:47:28]} {[%emt 00:00:07]}
65. Qb2+ {[%clk 00:02:50]} {[%emt 00:00:21]} Kc4 {[%clk 00:47:48]} {[%emt
00:00:11]} 66. Kf2 {[%clk 00:02:45]} {[%emt 00:00:35]} b4 {[%clk 00:48:05]}
{[%emt 00:00:14]} 67. Ke3 {[%clk 00:02:21]} {[%emt 00:00:54]} 1-0